Cogmind - Beta 14 *** ADVENTURER MODE // 2024.08.09 @ 07:35:10 Player: Jefffff Result: Destroyed by 06-U1X(R) with Subdweller Beam Cannon Performance ------------- Evolutions (0) 0 Regions Visited (2) 400 Robots Destroyed (20) 100 Value Destroyed (311) 311 Prototype IDs (0) 0 Alien Tech Used (0) 0 Bonus (0) 0 TOTAL SCORE: 811 Bonus ------- None Cogmind --------- Core Integrity 0/250 Matter 299/300 Energy 114/125 System Corruption 0% Temperature Cool (9) Movement Rolling (130) Ox2 Location -10/Subcaves Parts ------- > --- POWER (1) -------- Light Ion Engine > --- PROPULSION (2) --- Compact Wheel Compact Wheel > --- UTILITY (2) ------ Huge Storage Unit Weapon Shielding > --- WEAPON (2) ------- Medium Laser Light Assault Rifle > --- INVENTORY (25) --- Light Ion Engine Light Ion Engine Subdweller Power Source Compact Wheel Compact Wheel Compact Wheel Medium Storage Unit Sensor Array Transport Network Coupler ECM Suite Utility Shielding Grenade Launcher Grenade Launcher Mining Laser Scrap Shield Fragment (46) Peak State ------------ > --- POWER ------------ Ion Engine > --- PROPULSION ------- Wheel Wheel > --- UTILITY ---------- Huge Storage Unit Weapon Shielding > --- WEAPON ----------- Medium Laser Medium Laser > --- INVENTORY -------- Light Ion Engine Light Ion Engine Light Ion Engine Light Ion Engine Wheel Wheel Compact Wheel Compact Wheel Compact Wheel Compact Wheel Compact Wheel Medium Storage Unit Sensor Array Transport Network Coupler ECM Suite Medium Laser Light Assault Rifle Grenade Launcher Grenade Launcher Mining Laser [Rating: 9] Favorites ----------- Power Ion Engine Engine Ion Engine Propulsion Wheel Leg Aluminum Leg Wheel Wheel Utility Huge Storage Unit Storage Huge Storage Unit Protection Weapon Shielding Weapon Medium Laser Energy Gun Medium Laser Ballistic Gun Light Assault Rifle Build | -11 -10 -10 ------- Run | Yrd Mat Sub Slots Evolved . | . . . Power . | . . . Propulsion . | . . . Utility . | . . . Weapon . | . . . Parts Attached 16 | . 7 9 Power 2 | . . 2 Engine 2 | . . 2 Core . | . . . Reactor . | . . . Propulsion 8 | . 4 4 Treads . | . . . Leg . | . . . Wheel 8 | . 4 4 Hover . | . . . Flight . | . . . Utility 3 | . 2 1 Device . | . . . Storage 1 | . 1 . Processor . | . . . Hackware . | . . . Protection 2 | . 1 1 Artifact . | . . . Weapon 3 | . 1 2 Energy Gun 2 | . 1 1 Energy Cannon . | . . . Ballistic Gun 1 | . . 1 Ballistic Cannon . | . . . Launcher . | . . . Special Weapon . | . . . Impact Weapon . | . . . Slashing Weapon . | . . . Piercing Weapon . | . . . Special Melee Weapon . | . . . Unidentified Prototypes . | . . . Parts Lost 9 | . . 9 Power 2 | . . 2 Propulsion 4 | . . 4 Utility 1 | . . 1 Weapon 2 | . . 2 Highest Loss Streak 9 | . . 9 To Critical Strikes . | . . . Average Slot Usage (%) 97 | . 97 95 Engine 13 | . 14 12 Leg 3 | . 4 . Wheel 23 | . 23 26 Storage 14 | . 14 14 Protection 11 | . 11 13 Energy Gun 26 | . 28 18 Ballistic Gun 1 | . . 9 Peak Build Rating 9 | . 9 9 Average Rating 7 | . 7 7 On Entrance 7 | 6 6 9 Naked Turns . | . . . Heaviest Build 90 | 14 90 90 Greatest Support 32 | 20 26 32 Greatest Overweight (x) 5 | . 4 5 Average Overweight (x) 3 | . 3 3 Largest Inventory Capacity 25 | . 25 25 Average Capacity 23 | . 23 25 Most Carried 21 | . 21 21 Average Carried 12 | . 12 16 Final Capacity 25 | 8 25 25 Final Carried 21 | 6 21 15 Class Distribution -------------------- 100% | Mutant Dominant Class ---------------- Mutant | -10/Materials Mutant | -10/Subcaves Resources | -11 -10 -10 ----------- Run | Yrd Mat Sub Matter Collected 341 | 166 104 71 Remotely . | . . . Salvage Created 558 | . 466 92 Parts 40 | . 39 1 Haulers Intercepted 2 | . 2 . Recyclers Shooed 1 | . 1 . Parts Field Recycled . | . . . Retrieved Matter . | . . . Parts Self-Destructed . | . . . Prevented . | . . . Kills | -11 -10 -10 ------- Run | Yrd Mat Sub Combat Hostiles Destroyed 11 | . 9 2 Guns 9 | . 7 2 Classes Destroyed 6 | . 5 1 Worker 4 | . 4 . Hauler 2 | . 2 . Watcher 3 | . 3 . Swarmer 6 | . 6 . Grunt 3 | . 3 . Subdweller 2 | . . 2 Best Kill Streak 5 | . 5 1 Combat Bots Only 4 | . 4 1 Max Kills in Single Turn 1 | . 1 1 Gunslinging . | . . . Exploded . | . . . Melee . | . . . Uniques/NPCs Destroyed . | . . . Combat | -11 -10 -10 -------- Run | Yrd Mat Sub Hostile Shots Fired 116 | . 53 63 Missed 27 | . 15 12 Damage Taken 1103 | . 267 836 Core 259 | . 43 216 Absorbed by Shields . | . . . Redirected to Shielding 76 | . 9 67 Ignored by Resistances 319 | . 85 234 Core Remaining (%) 100 | 100 . . Volleys Fired 80 | . 46 34 Largest 2 | . 2 2 Hottest 100 | . 100 100 Shots Fired 159 | . 92 67 Gun 159 | . 92 67 Cannon . | . . . Launcher . | . . . Special . | . . . Kinetic 22 | . . 22 Thermal 137 | . 92 45 Explosive . | . . . Electromagnetic . | . . . Robot Hit Streak 49 | . 15 49 Robot Miss Streak 6 | . 6 1 Penetration Max . | . . . Secondary Targets 4 | . 3 1 Max Gunslinging Chain 1 | . 1 1 Shots Hit Robots 123 | . 59 64 Core Hits 28 | . 22 6 Critical Kills . | . . . Critical Parts Destroyed . | . . . Critical Strikes 12 | . 9 3 Burn 12 | . 9 3 Melee Attacks . | . . . Impact . | . . . Slashing . | . . . Piercing . | . . . Sneak Attacks . | . . . Combat Hostiles . | . . . Follow-up Attacks . | . . . Damage Inflicted 1061 | . 752 309 Guns 1061 | . 752 309 Cannons . | . . . Explosions . | . . . Melee . | . . . Ramming . | . . . Kinetic 60 | . . 60 Thermal 1001 | . 752 249 Explosive . | . . . Electromagnetic . | . . . Impact . | . . . Slashing . | . . . Piercing . | . . . Highest Corruption . | . . . Average Corruption . | . . . Corruption Purged . | . . . Corruption Blocked . | . . . Overload Shots . | . . . Overflow Damage . | . . . Projectiles . | . . . Explosions . | . . . Melee . | . . . Knockbacks . | . . . Impact . | . . . Kinetic . | . . . Secondary . | . . . Self-Inflicted Damage . | . . . Shots . | . . . Rammed . | . . . Targets Rammed . | . . . Kicked . | . . . Crushed . | . . . Highest Temperature 312 | . 312 . Average Temperature 113 | . 113 . Received Heat Transfer 84 | . 75 9 Siege Activations . | . . . Robots Corrupted . | . . . Combat Hostiles . | . . . Parts Fried . | . . . Impact Corruptions . | . . . Robots Melted 3 | . 3 . Combat Hostiles 2 | . 2 . Parts Melted 9 | . 7 2 Heat Transferred 3848 | . 2886 962 Parts Sabotaged . | . . . Parts Stolen . | . . . Parts Stripped . | . . . Power Chain Reactions . | . . . Alert | -11 -10 -10 ------- Run | Yrd Mat Sub Peak Influence 203 | . 203 . Initial . | . . . Average 90 | . 90 . Maximum Alert Level 1 | . 1 . Low Security (%) 90 | . 90 . Level 1 9 | . 9 . Level 2 . | . . . Level 3 . | . . . Level 4 . | . . . Level 5 . | . . . High Security . | . . . Max Security . | . . . Squads Dispatched . | . . . Investigation . | . . . Extermination . | . . . Reinforcement . | . . . Assault . | . . . Garrison . | . . . Intercept . | . . . Searches Triggered . | . . . Construction Impeded . | . . . Haulers Reinforced . | . . . Active Scanning Responses . | . . . Cargo Convoy Interrupts . | . . . Stealth | -11 -10 -10 --------- Run | Yrd Mat Sub Distress Signals 1 | . 1 . Communications Jammed . | . . . Distress Signals . | . . . Times Spotted 21 | . 18 3 Peak Tracking Total 5 | . 5 2 Tactical Retreats 2 | . 2 . Traps | -11 -10 -10 ------- Run | Yrd Mat Sub Traps Triggered . | . . . Indirectly . | . . . Trap Hack Attempts . | . . . Triggered . | . . . Disarmed . | . . . Reprogrammed . | . . . Reused . | . . . Traps Extracted . | . . . Installed . | . . . Triggered . | . . . Machines | -11 -10 -10 ---------- Run | Yrd Mat Sub Machines Disabled . | . . . Max in Single Turn . | . . . Machines Repaired . | . . . Machines Dismantled . | . . . Machines Sabotaged . | . . . Overloaded Fab Kills . | . . . Hacking | -11 -10 -10 --------- Run | Yrd Mat Sub Machines Accessed . | . . . Terminals . | . . . Fabricators . | . . . Repair Stations . | . . . Recycling Units . | . . . Scanalyzers . | . . . Garrison Access . | . . . Total Hacks . | . . . Successful . | . . . Failed . | . . . Catastrophic . | . . . Database Lockouts . | . . . Manual . | . . . Terminals . | . . . Fabricators . | . . . Repair Stations . | . . . Recycling Units . | . . . Scanalyzers . | . . . Garrison Access . | . . . Terminal Hacks . | . . . Fabricator Hacks . | . . . Repair Station Hacks . | . . . Recycling Unit Hacks . | . . . Scanalyzer . | . . . Garrison Access Hacks . | . . . Unauthorized Hacks . | . . . Terminals . | . . . Fabricators . | . . . Repair Stations . | . . . Recycling Units . | . . . Scanalyzers . | . . . Garrison Access . | . . . Data Cores Recovered . | . . . Used . | . . . Hacking Detections . | . . . Full Trace Events . | . . . Feedback Events . | . . . Feedback Blocked . | . . . Robot Schematics Acquired . | . . . Robots Built . | . . . Authchips . | . . . Time . | . . . Total Robot Build Rating . | . . . Part Schematics Acquired . | . . . Parts Built . | . . . Authchips . | . . . Time . | . . . Total Part Build Rating . | . . . Parts Repaired . | . . . Time . | . . . Parts Recycled . | . . . Recycled Matter . | . . . Retrieved Matter . | . . . Retrieved Components . | . . . Parts Scanalyzed . | . . . Part Schematics Acquired . | . . . Parts Damaged . | . . . Bothacking | -11 -10 -10 ------------ Run | Yrd Mat Sub Used RIF Installer . | . . . Robots Hacked . | . . . Non-combat . | . . . Combat . | . . . Robot Hacks Applied . | . . . Relay Couplers Released . | . . . Fabnet Peak Effective % . | . . . Robots Rewired . | . . . Allies Hacked . | . . . Hacks Repelled . | . . . Allies | -11 -10 -10 -------- Run | Yrd Mat Sub Total Allies . | . . . Largest Group . | . . . Highest-Rated Group . | . . . Highest-Rated Ally . | . . . Total Orders . | . . . Ally Attacks . | . . . Total Damage . | . . . Kills . | . . . Allies Corrupted . | . . . Allies Melted . | . . . Intel | -11 -10 -10 ------- Run | Yrd Mat Sub Robot Analysis Total . | . . . Derelict Logs Recovered . | . . . Drone Launches . | . . . Drone Recoveries . | . . . Exploration | -11 -10 -10 ------------- Run | Yrd Mat Sub Turns Passed 1356 | . 1193 163 Spaces Moved 752 | 1 716 35 Core . | . . . Treads . | . . . Legs 78 | 1 77 . Wheels 674 | . 639 35 Hover . | . . . Flight . | . . . Fastest Speed 120 | 120 120 130 Average Speed 142 | 120 142 144 Slowest Speed 400 | 120 400 175 Overloaded Moves . | . . . Propulsion Burnouts . | . . . Robots Hopped . | . . . Cave-ins Triggered . | . . . Exploration Rate (%) 30 | 2 84 4 Regions Visited 2 Branch Regions 1 Pre-discovered Areas . | . . . Known Exits Taken . | . . . Unknown Exits Taken 2 | 1 1 . Scrap Searched . | . . . Spaces Dug . | . . . Terrain Destroyed . | . . . Melee . | . . . Projectile . | . . . AOE . | . . . Terrain Rammed . | . . . Walls Destroyed . | . . . Machines Disabled . | . . . Actions | -11 -10 -10 --------- Run | Yrd Mat Sub Total 888 | . 801 87 Wait 6 | . . 6 Move 750 | . 715 35 Hop . | . . . Pick Up 27 | . 24 3 Fast Attach 1 | . 1 . Attach 12 | . 3 9 Detach . | . . . Swap 3 | . 3 . Drop 9 | . 9 . Fire 80 | . 46 34 Melee . | . . . Ram . | . . . Kick . | . . . Crush . | . . . Escape Stasis . | . . . Rewire . | . . . Trap . | . . . Miscellaneous . | . . . Route ------- -11/Scrapyard -10/Materials (discovered 5 exits: [*Mat x3] / [*Min] / [*Sub]) -10/Subcaves History --------- Turn | Location | Event 1 | -11/Scrapyard | Discovered new exit (range 0) 1 | -11/Scrapyard | Entered Materials 91 | -10/Materials | Discovered new exit (range 10) 312 | -10/Materials | Build established: Mutant 339 | -10/Materials | Discovered new exit (range 6) 412 | -10/Materials | Discovered new exit (range 3) 691 | -10/Materials | Discovered new exit (range 10) 899 | -10/Materials | Discovered new exit (range 6) 1194 | -10/Materials | Entered Subcaves 1208 | -10/Subcaves | Ambushed by Subdwellers from Twisted Machinery 1223 | -10/Subcaves | Core integrity fell below 50% 1296 | -10/Subcaves | Core integrity fell below 20% 1346 | -10/Subcaves | Lost 9 parts (2p4n1u2w) 1357 | -10/Subcaves | Destroyed by 06-U1X(R) with Subdweller Beam Cannon Last Messages --------------- 01226_ Switching to secondary target: K5-QB5(R). 01227_ Ion Engine destroyed. 01235_ Wheel destroyed. 01245_ Med. Laser destroyed. 01255_ Wheel destroyed. 01277_ Weapon Shielding destroyed. 01283_ Wheel destroyed. 01287_ Lgt. Ion Engine destroyed. 01305_ K5-QB5(R) suffers critical hit (Burn). 01315_ Med. Laser destroyed. 01324_ Sub. Optics melted. 01324_ Disposable Heat Sink melted. 01324_ K5-QB5(R) destroyed. 01336_ Subatomizers dissect the Sub. Power Source. 01336_ Acquired 46 matter. 01338_ Acquired Sub. Power Source. 01341_ Acquired Scrap Shield Fragment. 01351_ Acquired 25 matter. 01353_ Acquired Utility Shielding. Map ----- +----------------------------------------------------+ | ?????????????????????????????????????????????????? | | ?????????????????????????????????????????????????? | | ?????????????????????????????????????????????????? | | ?????????????????????????????????????????????????? | | ?????????????????????????????????????????????????? | | ?????????????????????????????????????????????????? | | ?????????????????????????????????????????????????? | | ?????????????????????????????????????????????????? | | ?????????????????????????????????????????????????? | | ?????????????????????????????????????????????????? | | ?????????????????????????????????????????????????? | | ?????????????????????????????????????????????????? | | ?????????????????????????????????????????????????? | | ?????????????????????????????????????????????????? | | ?????????????????????????????????????###?????????? | | ?????????????????????????????###????# ##????????? | | ????????????????????????????## ##### ##???????? | | ????????????????????????????# ###?????? | | ????????????????????????????# ##????? | | ???????????????????????????## ##???? | | ?????????????????????#####?# #???? | | ???????????## ???### ### #???? | | ??????????" ## ## ### ? | | ??????????&" """ "" #### #??? ? | | ????????? < """" #### ##??? ? | | ????????????#" R %@ ##???? ? | | ????????????#"" ###### ?? | | ????????????????????????##### # # ??? | | ????????????????????????????### ## #??? | | ??????????????????????????????# ##?# ######????? | | ??????????????????????????????# #??? ##?????????? | | ??????????????????????????????# #???##??????????? | | ?????????????????????????????? #???????????????? | | ?????????????????????????????? #???????????????? | | ????????????????????????????? ##???????????????? | | ????????????????????????????? ##????????????????? | | ???????????????????????????? #??????????????????? | | ???????????????????????????? ???????????????????? | | ??????????????????????????? ???????????????????? | | ??????????????????????????? ???????????????????? | | ?????????????????????????? ???????????????????? | | ?????????????????????????? ????????????????????? | | ????????????????????????? ????????????????????? | | ????????????????????????? ????????????????????? | | ??????????????????????????? ?????????????????????? | | ?????????????????????????????????????????????????? | | ?????????????????????????????????????????????????? | | ?????????????????????????????????????????????????? | | ?????????????????????????????????????????????????? | | ?????????????????????????????????????????????????? | +----------------------------------------------------+ Best States ------------- Heat Dissipation 25 Energy Generation 10 Energy Capacity 250 Matter Stores 300 Matter Capacity 300 Sight Range 16 Terrain Scan Density 10 Resistance: KI 20 Resistance: TH 20 Resistance: EX 20 Resistance: EM 20 Resistance: I 20 Resistance: S 20 Resistance: P 20 Weapon Shielding 33 Evasion (%) 55 Offensive Hacking 10 Item Schematics ----------------- None Robot Schematics ------------------ None Fabricated ------------ Nothing Alien Tech Used ----------------- None Achievements -------------- None Challenges ------------ None Game ------ Seed PrecisionCloakingDoublenader Manual? 0 Play Time 00:08:30 Cumulative 131.8 hours Start 2024.08.09 @ 07:28:08 End 2024.08.09 @ 07:35:10 Sessions 1 Manual Loads 0 Difficulty Adventurer Special Mode None Game No. 180 Rogue 0 Adventurer 180 Explorer 0 Win Type - Total 0 Types 0/0/0/0/0/0/0/0/0 Lore% 45 Gallery% 50 Achievement% 38 Wizard Run 0 Options --------- Layout 2 ASCII 0 Keyboard 0 Movement Mouse Keybinds 0 Fullscreen 2 Font 48/Terminus Map View 50x44 Zoom Use 0% Tactical HUD 1 Map Filters NONE Filters NONE Steam 1 RUN: c7caf2f4-7c86-40c7-a7a8-c43e800efe01